[Event "Czech Championship 2024"]
[Site "Ostrava"]
[Date "2024.05.05"]
[Round "9.3"]
[White "Stocek, Jiri"]
[Black "Nemec, Jachym"]
[Result "1-0"]
[ECO "D51"]
[WhiteElo "2531"]
[BlackElo "2416"]
[Annotator "TA"]
[PlyCount "75"]
[EventDate "2024.04.25"]
[EventType "tourn"]
[EventCountry "CZE"]
[SourceTitle "playchess.com"]
[Source "ChessBase"]
[SourceQuality "1"]
[TimeControl "40/5400+30:1800+30"]

{[%evp 14,75,56,42,75,82,133,139,125,135,140,135,126,125,156,157,164,158,185,164,188,150,142,171,164,41,72,63,81,50,75,50,41,44,68,66,74,33,133,108,152,170,139,130,264,241,244,241,333,373,367,344,342,352,346,353,339,343,739,379,814,406,29984,29983]} 1. d4 {[%emt 0:01:01]} d5 {[%emt 0:00:04]} 2. c4 {[%emt 0:03:00]} e6 {[%emt 0:00:20]} 3. Nc3 {[%emt 0:01:17]} Nf6 {[%emt 0:00:10]} 4. Bg5 {[%emt 0:01:02]} Nbd7 {[%emt 0:00:31]} 5. e3 {[%emt 0:01:04]} Bb4 {[%emt 0:01:38]} 6. cxd5 {[%emt 0:02:12]} exd5 {[%emt 0:00:46]} 7. Bd3 {[%emt 0:00:21]} c5 {[%emt 0:04:07]} 8. Nge2 {[%emt 0:01:50]} O-O {[%emt 0:04:57]} 9. O-O {[%emt 0:01:12]} Qa5 {[%emt 0:04:00]} (9... c4 $142) 10. a3 $16 {[%emt 0:16:14]} Bxc3 {[%emt 0:00:14] White is clearly better.} 11. Nxc3 {[%emt 0:00:06][%cal Ob2b4]} c4 {[%emt 0:01:00]} 12. Bf5 {[%emt 0:07:47]} Re8 {[%emt 0:18:11]} 13. Bh4 {[%emt 0:07:40]} b6 {[%emt 0:15:16]} 14. Qf3 {[%emt 0:06:53]} Bb7 {[%emt 0:00:29]} 15. Qh3 {[%emt 0:01:02]} Bc6 {[%emt 0:01:18]} 16. Rad1 {[%emt 0:07:08]} Qa6 {[%emt 0:08:21]} 17. Rfe1 {[%emt 0:05:56]} g6 {[%emt 0:01:35]} 18. Bc2 {[%emt 0:04:32]} Qb7 {[%emt 0:02:28]} 19. b4 {[%emt 0:10:51]} (19. Bg5 $18) 19... cxb3 {[%emt 0:02:10]} 20. Bxb3 {[%emt 0:00:04]} Rac8 {[%emt 0:01:08]} 21. Qf3 {[%emt 0:03:00]} Kg7 {[%emt 0:01:51]} 22. h3 {[%emt 0:01:08] White has more active pieces.} (22. a4 $5) 22... b5 {[%emt 0:03:59]} 23. Rb1 {[%emt 0:01:12]} Re6 {[%emt 0:04:30]} 24. Qe2 {[%emt 0:01:39]} a6 {[%emt 0:01:27]} 25. Qb2 {[%emt 0:02:34][%cal Oe3e4]} Nb6 {[%emt 0:04:23] [#]} ({Black should try} 25... Ne4 $1 $14) 26. e4 $1 $36 {[%emt 0:02:32][%cal Be3e4,Be4d5,Bd5d6][%mdl 2592] Black is under strong pressure.} Nh5 {[%emt 0:02:22]} (26... Nxe4 $2 27. Nxe4 Rce8 28. f3 $18) (26... Qd7 27. e5) 27. Qa2 {[%emt 0:05:23][%cal Re4d5]} Rce8 {[%emt 0:01:59]} 28. Re3 {[%emt 0:00:53]} (28. Bxd5 $2 Bxd5 29. Qa1 Rxe4 (29... Bxe4 30. d5 $17) 30. Nxe4 Rxe4 (30... Bxe4 31. d5+ f6 32. Rb4 $11) 31. Rxe4 Bxe4 32. d5+ f6 $19) 28... Nf6 {[%emt 0:07:27] This move loses the game for Black.} (28... Rxe4 $16 29. Rxe4 (29. Nxe4 dxe4 30. Qb2 Nd5 $18) 29... dxe4) 29. Bxf6+ $18 {[%emt 0:01:00]} Rxf6 {[%emt 0:00:08]} 30. exd5 {[%emt 0:00:48]} ({Inferior is} 30. Bxd5 Bxd5 31. exd5 (31. Nxd5 Nxd5 32. Qxd5 Qxd5 $11) 31... Rd8 $11) 30... Bd7 {[%emt 0:00:39]} 31. Rxe8 {[%emt 0:00:20]} Bxe8 {[%emt 0:00:01]} 32. Re1 {[%emt 0:00:30] Wards off Qe7} Qb8 {[%emt 0:01:34]} 33. Ne4 {[%emt 0:01:27]} Rf4 {[%emt 0:00:05]} 34. Qd2 {[%emt 0:00:27] d6 would now be deadly.} Bd7 {[%emt 0:02:00]} 35. d6 {[%emt 0:00:18]} Rf5 {[%emt 0:00:06]} (35... Rxe4 36. Rxe4 Qxd6) 36. d5 {[%emt 0:00:56]} f6 $2 {[%emt 0:04:22]} (36... Re5 37. Qd4 f6) 37. Qc3 {[%emt 0:00:25]} (37. f4 $142) 37... Nc4 {[%emt 0:01:57] [#]} (37... Re5 $18 38. f4 Rxe4 39. Rxe4 Qxd6) 38. Nxf6 $1 {[%emt 0:01:02][%mdl 512] Weighted Error Value: White=0.45/Black=0.50.  Mistake:       	White=1     	Black=6      Inaccurate:     	White=3     	Black=3      OK:         	White=16    	Black=11     Best:        	White=1     	Black=1} 1-0

[Event "Czech Championship 2024"]
[Site "Ostrava"]
[Date "2024.05.05"]
[Round "9.4"]
[White "Kraus, Tomas"]
[Black "Neuman, Petr"]
[Result "0-1"]
[ECO "A01"]
[WhiteElo "2488"]
[BlackElo "2429"]
[Annotator "TA"]
[PlyCount "184"]
[EventDate "2024.04.25"]
[EventType "tourn"]
[EventCountry "CZE"]
[SourceTitle "playchess.com"]
[Source "ChessBase"]
[SourceQuality "1"]
[TimeControl "40/5400+30:1800+30"]

{[%evp 9,184,14,22,18,24,14,36,31,30,6,55,32,86,67,68,57,59,27,32,22,31,0,15,34,36,28,45,46,114,72,91,47,70,33,79,74,71,75,164,53,79,41,45,18,14,0,0,0,0,0,0,0,2,6,12,9,45,45,46,40,54,57,62,47,52,46,47,55,45,-65,-60,-64,-57,-80,-18,-47,-20,-19,-20,-19,-22,-133,-133,-128,-131,-295,-312,-272,-302,-282,-272,-391,-388,-396,-316,-316,-309,-422,-414,-407,-418,-414,-385,-29950,-29951,-29953,-29951,-29952,-29953,-29953,-29954,-29954,-29953,-29955,-29956,-29954,-29956,-29957,-29958,-29956,-29954,-29956,-233,-29960,-29961,-29963,-29961,-29960,-29961,-29974,-29975,-29975,-29973,-29973,-29968,-29969,-29968,-29967,-29967,-29967,-29969,-29968,-29960,-29949,-4122,-29965,-29967,-29970,-29964,-29974,-29975,-29974,-29969,-29972,-29973,-29981,-29982,-29982,-29981,-29981,-29982,-29983,-29983,-29983,-29984,-29984,-29984,-29985,-29986,-29986,-29987,-29987,-29987,-29987,-29988,-29988,-29985]} 1. b3 {[%emt 0:00:41]} e5 {[%emt 0:00:33]} 2. Bb2 {[%emt 0:00:41]} Nc6 {[%emt 0:00:08]} 3. c4 {[%emt 0:01:00]} g6 {[%emt 0:06:34]} 4. e3 {[%emt 0:00:03]} Bg7 {[%emt 0:00:06]} 5. Nf3 {[%emt 0:00:27]} f5 {[%emt 0:02:56]} 6. d4 {[%emt 0:04:47]} e4 {[%emt 0:00:17]} 7. Ng1 {[%emt 0:00:34][%cal Bf3g1,Bg1h3,Bh3f4][%mdl 32]} d6 {[%emt 0:09:01]} 8. Nc3 {[%emt 0:05:49] White is slightly better.} Nf6 {[%emt 0:00:22]} 9. h4 {[%emt 0:08:23]} Ne7 {[%emt 0:05:34]} (9... f4 $11 10. exf4 Ne7) 10. d5 {[%emt 0:04:29]} c6 {[%emt 0:01:10]} ({Black should try} 10... Neg8 $14) 11. Nh3 {[%emt 0:06:56]} cxd5 {[%emt 0:02:26]} 12. Nf4 {[%emt 0:00:46]} (12. cxd5 Nfxd5 13. Qd2 Qa5 $11) 12... O-O {[%emt 0:08:21]} 13. cxd5 {[%emt 0:03:11]} (13. Ncxd5 Nexd5 14. cxd5 (14. Nxd5 Rf7 $11) 14... Qa5+ 15. Qd2 Qxd2+ 16. Kxd2 Bd7) 13... Bd7 {[%emt 0:05:11][%cal Of6h5]} 14. Qd2 {[%emt 0:01:24]} Qa5 {[%emt 0:04:32] Wards off Nb5} 15. Rd1 {[%emt 0:26:41][%cal Oc3e4]} Ng4 {[%emt 0:09:12]} 16. Be2 {[%emt 0:06:35]} Rac8 {[%emt 0:02:10]} 17. Rc1 {[%emt 0:02:09]} Ne5 {[%emt 0:01:57]} 18. O-O {[%emt 0:00:58]} Qb6 {[%emt 0:02:09]} (18... b5 $1 $14) 19. Rc2 {[%emt 0:03:12]} Bf6 {[%emt 0:00:39]} 20. g3 {[%emt 0:01:48]} h6 {[%emt 0:02:11]} 21. Kg2 {[%emt 0:00:26]} g5 {[%emt 0:00:24]} (21... Rf7 $14 {deserves consideration.}) 22. hxg5 $1 $16 {[%emt 0:00:49]} hxg5 {[%emt 0:00:04]} 23. Ne6 {[%emt 0:01:00]} Rf7 {[%emt 0:00:41]} (23... Bxe6 $16 24. dxe6 Nf3) 24. Rfc1 {[%emt 0:03:06]} (24. Rh1 $18) 24... Qb4 {[%emt 0:09:38]} 25. Nd4 {[%emt 0:01:22][%cal Oc3e4] Repels Nf3} (25. Qd1 {is more complex.} Rh7 26. a3 Nf3 27. Bxf3 exf3+ 28. Qxf3 Qg4 29. Qxg4 fxg4 30. e4) 25... Nd3 {[%emt 0:02:55]} 26. Bxd3 {[%emt 0:03:04]} exd3 {[%emt 0:00:04]} 27. Ne4 {[%emt 0:01:23] Excellent horsemanship.} Qxd2 {[%emt 0:01:23]} 28. Nxf6+ $1 {[%emt 0:00:08]} Rxf6 {[%emt 0:00:08]} 29. Rxd2 {[%emt 0:00:00]} Rxc1 {[%emt 0:01:19]} 30. Bxc1 {[%emt 0:00:01]} Nxd5 {[%emt 0:03:45]} 31. Rxd3 {[%emt 0:00:03]} Nb4 {[%emt 0:00:18]} 32. Rd2 {[%emt 0:00:30]} Nc6 {[%emt 0:01:34]} 33. Nb5 {[%emt 0:02:48][%cal Oc1b2]} Ne5 {[%emt 0:00:54]} 34. Nxa7 {[%emt 0:00:39] Bb2 would now be deadly.} (34. Nxd6 Bc6+ 35. f3 Nxf3 $17) 34... f4 {[%emt 0:01:22]} 35. exf4 {[%emt 0:01:51]} gxf4 {[%emt 0:00:10]} 36. gxf4 {[%emt 0:06:17]} Rg6+ $1 {[%emt 0:00:40]} 37. Kf1 {[%emt 0:00:06]} Nf3 {[%emt 0:00:55] Threatens to win with ...Rg1+.} 38. Rd1 $1 {[%emt 0:02:21]} Bg4 {[%emt 0:03:17]} 39. Rd3 {[%emt 0:01:28]} (39. f5 $14 Bxf5 40. Nb5) 39... Rh6 $15 {[%emt 0:01:06][%mdl 1024] Black has compensation.} 40. Rc3 {[%emt 0:01:57]} Rh1+ {[%emt 0:07:51]} 41. Ke2 {[%emt 0:30:33][%cal Oc1b2] [#]} d5 {[%emt 0:11:19]} ({Better is} 41... Nd4+ $1 $17 42. Kd3 Rd1+ (42... Ne2 43. Bd2 $17) 43. Ke4 Ne2 (43... Bf5+ $2 44. Ke3 $19)) 42. Bd2 {[%emt 0:00:00]} Ra1 {[%emt 0:02:10]} 43. a4 {[%emt 0:00:00]} (43. Rxf3 Rxa2 (43... Bxf3+ $2 {is the wrong capture.} 44. Kxf3 Rxa2 45. Be3 $18) 44. Kd3 Bxf3 $17) 43... Ra2 {[%emt 0:08:04]} 44. Rxf3 {[%emt 0:00:00]} Bxf3+ $11 {[%emt 0:00:16][%mdl 4096] Endgame. KRB-KBN} 45. Ke3 {[%emt 0:00:00]} (45. Kxf3 $11 {was the only way to keep the balance.} Rxd2 46. Ke3) 45... Bd1 $17 {[%emt 0:00:44]} 46. a5 {[%emt 0:00:00]} Bxb3 {[%emt 0:00:18] Black is much more active.} (46... d4+ 47. Kd3 Bxb3 48. Nc8 $17) 47. Nb5 $2 {[%emt 0:00:00] [#] This move loses the game for White.} (47. Nc8 $17) 47... Bc4 $1 $19 {[%emt 0:00:31]} 48. Nc3 {[%emt 0:00:00]} Rxa5 {[%emt 0:00:54]} 49. Kd4 {[%emt 0:00:00]} Ra8 {[%emt 0:01:12]} 50. Be3 {[%emt 0:00:00]} (50. Kc5 {was worth a try.}) 50... b5 {[%emt 0:01:15]} 51. Kc5 {[%emt 0:00:00]} Rc8+ {[%emt 0:00:08]} 52. Kb4 {[%emt 0:00:00]} Kf7 {[%emt 0:00:42]} 53. Bd4 {[%emt 0:00:00]} Ke6 {[%emt 0:01:14]} 54. Be5 {[%emt 0:00:00]} Kf5 {[%emt 0:05:25]} 55. f3 {[%emt 0:00:00]} Ke6 {[%emt 0:00:13]} 56. Nxb5 $2 {[%emt 0:00:00]} (56. Nb1 $19) 56... Bxb5 {[%emt 0:00:08]} 57. Kxb5 {[%emt 0:00:00] KR-KB} Rc4 {[%emt 0:00:45]} 58. Bb8 {[%emt 0:00:00]} Rc3 {[%emt 0:00:26]} 59. Be5 {[%emt 0:00:00]} Rxf3 {[%emt 0:00:06]} 60. Kc5 {[%emt 0:00:00]} Rf1 {[%emt 0:01:09]} 61. Kd4 {[%emt 0:00:00]} Rd1+ {[%emt 0:00:05]} 62. Ke3 {[%emt 0:00:00]} Re1+ {[%emt 0:01:25]} 63. Kd4 {[%emt 0:00:00]} Re4+ {[%emt 0:00:09]} 64. Kd3 {[%emt 0:00:00]} Ra4 {[%emt 0:00:05]} 65. Ke3 {[%emt 0:00:00]} Kd7 {[%emt 0:01:46] ( -> ...Ra3+)} 66. Kd3 $2 {[%emt 0:00:00]} (66. Kd2 $19) 66... Ra3+ {[%emt 0:00:35]} 67. Kd4 {[%emt 0:00:18]} Kc6 {[%emt 0:00:11]} 68. Bg7 {[%emt 0:02:11]} Ra4+ {[%emt 0:00:53]} 69. Ke5 {[%emt 0:00:44]} Re4+ {[%emt 0:00:40]} 70. Kf5 {[%emt 0:00:01]} Re2 {[%emt 0:00:59]} 71. Be5 {[%emt 0:03:55]} Kd7 {[%emt 0:00:25]} 72. Kf6 {[%emt 0:00:47]} Rd2 {[%emt 0:01:18]} 73. Kf5 {[%emt 0:00:29]} Rd1 {[%emt 0:00:52]} 74. Bf6 {[%emt 0:02:30]} Kd6 {[%emt 0:02:00]} 75. Be5+ {[%emt 0:00:14]} Ke7 {[%emt 0:01:02]} 76. Bf6+ {[%emt 0:00:31]} Kd7 {[%emt 0:01:34]} (76... Kf7 $142 77. Bb2 Rd2 78. Bf6 Re2 79. Bd4 Re4 80. Bg1 Ke8 81. Bf2 Kd7 82. Ba7 Kc6 83. Kg4 d4 84. Kf3 d3 85. Be3 Kd5 86. f5 Re5 87. Kf4 Re8 88. Kf3 Ke5 89. Bg5 Kxf5 90. Bd2 Re2 91. Bc3 Ke6 92. Ba5 Kd5 93. Bc3 Kc4 94. Ba5 Ra2 95. Bd8 Rh2 96. Bg5 d2 97. Bxd2 Rxd2 98. Kf4 Kd4 99. Kf5 Re2 100. Kf6 Re5 101. Kg6 Kd5 102. Kf7 Re6 103. Kf8 Kd6 104. Kf7 Kd7 105. Kf8 Re7 106. Kg8 Ke8 107. Kh8 Kf7 108. Kh7 Re6 109. Kh8 Rh6#) 77. Bg7 {[%emt 0:01:14]} Re1 {[%emt 0:00:39] Black mates.} 78. Bd4 {[%emt 0:00:55]} Re4 {[%emt 0:00:20]} 79. Bg7 {[%emt 0:00:58]} Kc6 {[%emt 0:00:13]} 80. Be5 {[%emt 0:00:07]} Re2 {[%emt 0:01:02]} 81. Bd4 {[%emt 0:01:07]} Kb5 {[%emt 0:00:11]} 82. Bg7 {[%emt 0:02:46]} Kc4 {[%emt 0:00:09]} 83. Kg6 {[%emt 0:00:09]} Rg2+ {[%emt 0:00:26]} 84. Kf6 {[%emt 0:00:34]} d4 {[%emt 0:01:13]} 85. f5 {[%emt 0:00:15]} d3 {[%emt 0:01:09]} 86. Bh6 {[%emt 0:00:08]} Kd5 {[%emt 0:00:54]} 87. Ke7 {[%emt 0:01:37]} Re2+ {[%emt 0:00:06]} 88. Kf7 {[%emt 0:01:24]} d2 {[%emt 0:00:11]} 89. Bxd2 {[%emt 0:00:07]} Rxd2 {[%emt 0:00:04]} 90. f6 {[%emt 0:00:11]} Kd6 {[%emt 0:00:06]} 91. Ke8 {[%emt 0:00:22]} Re2+ {[%emt 0:00:08]} 92. Kf7 {[%emt 0:00:16]} Ke5 {[%emt 0:04:44] Weighted Error Value: White=0.34/Black=0.15 (very precise) .  Loses game:     	White=1     	---        Mistake:       	White=5     	Black=6      Inaccurate:     	White=9     	Black=3      OK:         	White=22    	Black=19     Best:        	White=4     	Black=4      Strong:       	White=3     	Black=2} 0-1

[Event "Czech Championship 2024"]
[Site "Ostrava"]
[Date "2024.05.05"]
[Round "9.5"]
[White "Navara, David"]
[Black "Simacek, Pavel"]
[Result "1-0"]
[ECO "C42"]
[WhiteElo "2678"]
[BlackElo "2446"]
[Annotator "TA"]
[PlyCount "67"]
[EventDate "2024.04.25"]
[EventType "tourn"]
[EventCountry "CZE"]
[SourceTitle "playchess.com"]
[Source "ChessBase"]
[SourceQuality "1"]
[TimeControl "40/5400+30:1800+30"]

{[%evp 12,66,41,45,60,51,48,45,41,49,51,52,102,69,71,70,66,51,42,50,72,66,64,66,84,84,115,116,122,122,120,124,122,115,237,212,266,245,286,286,345,331,441,436,493,497,644,613,804,693,656,636,5243,6041,29955,29957,29999]} 1. e4 {[%emt 0:00:01]} e5 {[%emt 0:00:21]} 2. Nf3 {[%emt 0:00:05]} Nf6 {[%emt 0:00:06]} 3. Nxe5 {[%emt 0:00:15]} Nxe4 {[%emt 0:00:10]} 4. Qe2 {[%emt 0:00:25]} Qe7 {[%emt 0:00:11]} 5. Qxe4 {[%emt 0:00:13]} d6 {[%emt 0:00:09]} 6. d4 {[%emt 0:00:12]} dxe5 {[%emt 0:00:17]} 7. dxe5 {[%emt 0:00:27]} Nc6 {[%emt 0:00:05]} 8. Nc3 {[%emt 0:00:26]} Qxe5 {[%emt 0:00:13]} 9. Qxe5+ {[%emt 0:00:15]} Nxe5 {[%emt 0:00:03] White is slightly better.} 10. Bf4 {[%emt 0:02:59]} f6 {[%emt 0:01:09]} 11. O-O-O {[%emt 0:01:56] Black must now prevent Nb5.} Bc5 {[%emt 0:14:10]} (11... Bd7 $14) 12. Ne4 {[%emt 0:08:25]} Be7 {[%emt 0:08:39]} 13. Bxe5 {[%emt 0:12:52]} fxe5 {[%emt 0:00:06]} 14. Bc4 {[%emt 0:01:07] Repels Be6} Bf5 {[%emt 0:25:43]} 15. Rhe1 {[%emt 0:04:46]} Bxe4 {[%emt 0:19:44]} 16. Rxe4 {[%emt 0:00:17]} Bf6 {[%emt 0:00:07]} 17. f4 {[%emt 0:01:55] White has more active pieces. The black rooks are passive.} Ke7 {[%emt 0:01:40]} 18. g4 {[%emt 0:09:23][%cal Bg2g4,Bg4g5,Bg5f6][%mdl 32] Threatens to win with g5!} (18. fxe5 Bg5+ 19. Kb1 Rhf8 $16) 18... g6 {[%emt 0:00:20] [#]} 19. g5 $1 {[%emt 0:00:08]} ({Don't take} 19. fxe5 Bg5+ 20. Kb1 Rhf8 $14) 19... Bg7 {[%emt 0:00:03]} 20. fxe5 {[%emt 0:00:09]} Rad8 {[%emt 0:00:17]} 21. Rf1 $36 {[%emt 0:01:44][%mdl 2048] White is really pushing.} Rhf8 {[%emt 0:11:49] [#] Prevents Rf7+} 22. Rf6 {[%emt 0:00:14][%cal Oe4h4][%mdl 512] Hoping for Rh4!} Bxf6 {[%emt 0:00:20] This move loses the game for Black.} (22... Kd7 $16 23. Rf7+ Rxf7 24. e6+ (24. Bxf7 Ke7 $11) 24... Ke7 25. exf7+ Kf8) (22... Rd7 23. e6) 23. gxf6+ $16 {[%emt 0:02:26][%mdl 4096] Endgame. KRR-KRB} ({Don't do} 23. exf6+ $6 Kd6) 23... Ke8 {[%emt 0:00:04]} 24. c3 {[%emt 0:02:03]} c6 {[%emt 0:00:24]} 25. Kc2 {[%emt 0:05:23]} Rd7 {[%emt 0:02:23]} 26. Be6 {[%emt 0:01:01]} Rd8 {[%emt 0:01:07]} 27. a4 {[%emt 0:07:22]} a5 {[%emt 0:01:13]} 28. b4 {[%emt 0:00:54]} Ra8 {[%emt 0:05:22]} 29. Rd4 {[%emt 0:00:50]} Rd8 {[%emt 0:03:27]} 30. Rh4 {[%emt 0:09:50]} h5 {[%emt 0:01:14]} 31. bxa5 {[%emt 0:00:09] aiming for Rb4.} Ra8 {[%emt 0:02:39]} 32. Rb4 {[%emt 0:00:47]} Rxa5 {[%emt 0:00:04]} 33. Rxb7 {[%emt 0:00:11][%cal Rb7b8]} Rxe5 {[%emt 0:00:01]} 34. Rb8# {[%emt 0:00:05] Weighted Error Value: White=0.10 (very precise) /Black=0.56.  Mistake:       	---       	Black=2      Inaccurate:     	White=1     	Black=3      OK:         	White=11    	Black=7      Best:        	White=2     	Black=1      Strong:       	White=1     	---        Brilliant:      	White=1     	---} 1-0